[Event "Titled Tuesday Blitz July 4 Early 2023"]
[White "Vyatkin, Dmitry"]
[Black "Andreassen, Lars"]
[WhiteFideId "4171900"]
[BlackFideId "1504878"]
[WhiteElo "2522"]
[BlackElo "2275"]
[Result "1/2-1/2"]
[Round "10"]
[TimeControl "180+2"]
[Date "2023.07.04"]
[WhiteClock "0:00:04"]
[BlackClock "0:00:56"]
[Board "93"]

1. d4 {[%clk 0:03:00]}  d5 {[%clk 0:02:59]} 2. c4 {[%clk 0:03:00]}  e6 {[%clk 0:03:00]} 3. Nf3 {[%clk 0:03:00]}  c5 {[%clk 0:03:00]} 4. cxd5 {[%clk 0:02:56]}  cxd4 {[%clk 0:03:00]} 5. Qxd4 {[%clk 0:02:54]}  exd5 {[%clk 0:02:58]} 6. Nc3 {[%clk 0:02:28]}  Nf6 {[%clk 0:02:52]} 7. e4 {[%clk 0:02:19]}  dxe4 {[%clk 0:02:45]} 8. Qxd8+ {[%clk 0:02:16]}  Kxd8 {[%clk 0:02:46]} 9. Ng5 {[%clk 0:02:16]}  Be6 {[%clk 0:02:42]} 10. Nxe6+ {[%clk 0:02:13]}  fxe6 {[%clk 0:02:42]} 11. Bc4 {[%clk 0:02:06]}  Nc6 {[%clk 0:02:34]} 12. Be3 {[%clk 0:01:55]}  Bb4 {[%clk 0:02:33]} 13. Bxe6 {[%clk 0:01:47]}  Ke7 {[%clk 0:02:33]} 14. Bb3 {[%clk 0:01:44]}  Rad8 {[%clk 0:02:25]} 15. O-O {[%clk 0:01:42]}  Nd4 {[%clk 0:02:08]} 16. Rfe1 {[%clk 0:01:20]}  Nxb3 {[%clk 0:02:03]} 17. axb3 {[%clk 0:01:20]}  a6 {[%clk 0:01:59]} 18. Bg5 {[%clk 0:01:19]}  Bxc3 {[%clk 0:01:52]} 19. bxc3 {[%clk 0:01:14]}  Rd3 {[%clk 0:01:48]} 20. Rxe4+ {[%clk 0:01:09]}  Kf7 {[%clk 0:01:48]} 21. Bxf6 {[%clk 0:01:03]}  Kxf6 {[%clk 0:01:48]} 22. Rc4 {[%clk 0:00:51]}  Rhd8 {[%clk 0:01:45]} 23. g3 {[%clk 0:00:49]}  R8d7 {[%clk 0:01:43]} 24. h4 {[%clk 0:00:46]}  h6 {[%clk 0:01:41]} 25. Re1 {[%clk 0:00:40]}  Rd2 {[%clk 0:01:29]} 26. h5 {[%clk 0:00:33]}  R7d5 {[%clk 0:01:20]} 27. Rc7 {[%clk 0:00:14]}  Rd7 {[%clk 0:01:16]} 28. Rc4 {[%clk 0:00:12]}  R7d5 {[%clk 0:01:06]} 29. Rc7 {[%clk 0:00:09]}  Rd7 {[%clk 0:01:06]} 30. Rxd7 {[%clk 0:00:08]}  Rxd7 {[%clk 0:01:06]} 31. Re3 {[%clk 0:00:06]}  Rd2 {[%clk 0:01:05]} 32. b4 {[%clk 0:00:05]}  b6 {[%clk 0:01:00]} 33. Kg2 {[%clk 0:00:02]}  Rc2 {[%clk 0:00:59]} 34. g4 {[%clk 0:00:02]}  a5 {[%clk 0:00:58]} 35. bxa5 {[%clk 0:00:01]}  bxa5 {[%clk 0:00:59]} 36. Kg3 {[%clk 0:00:01]}  a4 {[%clk 0:00:59]} 37. f3 {[%clk 0:00:01]}  a3 {[%clk 0:00:58]} 38. c4 {[%clk 0:00:01]}  a2 {[%clk 0:00:58]} 39. Ra3 {[%clk 0:00:01]}  Ke5 {[%clk 0:00:59]} 40. c5 {[%clk 0:00:01]}  Kd5 {[%clk 0:00:59]} 41. Kf4 {[%clk 0:00:01]}  Kxc5 {[%clk 0:00:59]} 42. Kf5 {[%clk 0:00:02]}  Kb4 {[%clk 0:00:59]} 43. Ra8 {[%clk 0:00:01]}  Kb3 {[%clk 0:00:59]} 44. Kg6 {[%clk 0:00:02]}  Rc7 {[%clk 0:00:57]} 45. f4 {[%clk 0:00:02]}  Kb2 {[%clk 0:00:56]} 46. g5 {[%clk 0:00:01]}  hxg5 {[%clk 0:00:55]} 47. fxg5 {[%clk 0:00:02]}  a1=Q {[%clk 0:00:56]} 48. Rxa1 {[%clk 0:00:02]}  Kxa1 {[%clk 0:00:56]} 49. h6 {[%clk 0:00:03]}  gxh6 {[%clk 0:00:57]} 50. gxh6 {[%clk 0:00:03]}  Kb2 {[%clk 0:00:57]} 51. h7 {[%clk 0:00:04]}  Rxh7 {[%clk 0:00:56]} 52. Kxh7 {[%clk 0:00:04]} 1/2-1/2


[Site "https://www.chess.com"]

[Event "Titled Tuesday Blitz July 4 Early 2023"]
[White "Matamoros Franco, Carlos S."]
[Black "Sanhueza, Cristian"]
[WhiteFideId "3600017"]
[BlackFideId "116815"]
[WhiteElo "2615"]
[BlackElo "2454"]
[Result "0-1"]
[Round "10"]
[TimeControl "180+2"]
[Date "2023.07.04"]
[WhiteClock "0:00:00"]
[BlackClock "0:00:04"]
[Board "96"]

1. c4 {[%clk 0:03:00]}  Nf6 {[%clk 0:02:59]} 2. g3 {[%clk 0:03:01]}  g6 {[%clk 0:03:00]} 3. Bg2 {[%clk 0:03:01]}  Bg7 {[%clk 0:03:01]} 4. Nc3 {[%clk 0:03:02]}  O-O {[%clk 0:03:01]} 5. d4 {[%clk 0:03:02]}  d6 {[%clk 0:03:02]} 6. Nf3 {[%clk 0:03:02]}  Nc6 {[%clk 0:03:02]} 7. d5 {[%clk 0:03:02]}  Na5 {[%clk 0:03:02]} 8. b3 {[%clk 0:03:01]}  c5 {[%clk 0:02:58]} 9. Bb2 {[%clk 0:02:58]}  a6 {[%clk 0:02:57]} 10. O-O {[%clk 0:02:56]}  Rb8 {[%clk 0:02:57]} 11. Nd2 {[%clk 0:02:50]}  b5 {[%clk 0:02:56]} 12. Qc1 {[%clk 0:02:50]}  Bh6 {[%clk 0:02:39]} 13. e3 {[%clk 0:02:47]}  bxc4 {[%clk 0:02:39]} 14. bxc4 {[%clk 0:02:44]}  Bf5 {[%clk 0:02:40]} 15. Re1 {[%clk 0:02:11]}  Bd3 {[%clk 0:02:28]} 16. Nd1 {[%clk 0:02:11]}  Bg7 {[%clk 0:02:05]} 17. Bf1 {[%clk 0:01:23]}  Bxf1 {[%clk 0:02:02]} 18. Rxf1 {[%clk 0:01:19]}  Qd7 {[%clk 0:01:58]} 19. Bc3 {[%clk 0:01:19]}  Qa4 {[%clk 0:01:23]} 20. Nb2 {[%clk 0:01:18]}  Rxb2 {[%clk 0:01:12]} 21. Qxb2 {[%clk 0:01:06]}  Nxc4 {[%clk 0:01:10]} 22. Nxc4 {[%clk 0:01:07]}  Qxc4 {[%clk 0:01:11]} 23. Rfd1 {[%clk 0:01:07]}  h5 {[%clk 0:01:01]} 24. Rac1 {[%clk 0:01:00]}  Qg4 {[%clk 0:00:51]} 25. Bxf6 {[%clk 0:00:50]}  Bxf6 {[%clk 0:00:51]} 26. Qb3 {[%clk 0:00:50]}  h4 {[%clk 0:00:36]} 27. Qc4 {[%clk 0:00:48]}  Qf3 {[%clk 0:00:32]} 28. Qf1 {[%clk 0:00:48]}  Kg7 {[%clk 0:00:30]} 29. Rd2 {[%clk 0:00:30]}  Rh8 {[%clk 0:00:18]} 30. Qg2 {[%clk 0:00:29]}  Qf5 {[%clk 0:00:19]} 31. g4 {[%clk 0:00:23]}  Qd7 {[%clk 0:00:19]} 32. h3 {[%clk 0:00:22]}  Rb8 {[%clk 0:00:17]} 33. Rdc2 {[%clk 0:00:17]}  Qa4 {[%clk 0:00:17]} 34. Qf3 {[%clk 0:00:16]}  Rb4 {[%clk 0:00:14]} 35. Kg2 {[%clk 0:00:16]}  a5 {[%clk 0:00:13]} 36. Qe2 {[%clk 0:00:15]}  Qa3 {[%clk 0:00:12]} 37. Rc4 {[%clk 0:00:13]}  Rb2 {[%clk 0:00:08]} 38. R1c2 {[%clk 0:00:14]}  Qxa2 {[%clk 0:00:07]} 39. Rxb2 {[%clk 0:00:13]}  Qxb2 {[%clk 0:00:08]} 40. Qxb2 {[%clk 0:00:13]}  Bxb2 {[%clk 0:00:09]} 41. Kf3 {[%clk 0:00:12]}  Kf6 {[%clk 0:00:07]} 42. Ke4 {[%clk 0:00:12]}  Ba3 {[%clk 0:00:06]} 43. Ra4 {[%clk 0:00:09]}  Bb4 {[%clk 0:00:06]} 44. Kd3 {[%clk 0:00:08]}  Ke5 {[%clk 0:00:06]} 45. e4 {[%clk 0:00:06]}  Kf4 {[%clk 0:00:06]} 46. Ra1 {[%clk 0:00:02]}  Kf3 {[%clk 0:00:05]} 47. e5 {[%clk 0:00:03]}  dxe5 {[%clk 0:00:05]} 48. Kc4 {[%clk 0:00:03]}  Kxf2 {[%clk 0:00:04]} 49. Kb5 {[%clk 0:00:03]}  Kg3 {[%clk 0:00:04]} 50. Kc6 {[%clk 0:00:04]}  Kxh3 {[%clk 0:00:04]} 51. Kd7 {[%clk 0:00:05]}  c4 {[%clk 0:00:04]} 52. Rc1 {[%clk 0:00:04]}  c3 {[%clk 0:00:04]} 53. g5 {[%clk 0:00:00]}  Kg2 {[%clk 0:00:04]} 0-1


[Site "https://www.chess.com"]

[Event "Titled Tuesday Blitz July 4 Early 2023"]
[White "Zacurdajev, Dmitry"]
[Black "Ganiev, Roman"]
[WhiteFideId "4196309"]
[BlackFideId "4131452"]
[WhiteElo "2445"]
[BlackElo "2591"]
[Result "0-1"]
[Round "10"]
[TimeControl "180+2"]
[Date "2023.07.04"]
[WhiteClock "0:00:01"]
[BlackClock "0:00:07"]
[Board "98"]

1. d4 {[%clk 0:02:56]}  Nf6 {[%clk 0:02:58]} 2. c4 {[%clk 0:02:56]}  e6 {[%clk 0:02:58]} 3. Nc3 {[%clk 0:02:56]}  Bb4 {[%clk 0:02:58]} 4. Qc2 {[%clk 0:02:56]}  O-O {[%clk 0:02:58]} 5. a3 {[%clk 0:02:56]}  Bxc3+ {[%clk 0:02:58]} 6. Qxc3 {[%clk 0:02:57]}  d5 {[%clk 0:02:59]} 7. Bg5 {[%clk 0:02:56]}  h6 {[%clk 0:02:57]} 8. Bh4 {[%clk 0:02:52]}  dxc4 {[%clk 0:02:54]} 9. Qxc4 {[%clk 0:02:52]}  b6 {[%clk 0:02:54]} 10. Nf3 {[%clk 0:02:48]}  Ba6 {[%clk 0:02:54]} 11. Qa4 {[%clk 0:02:49]}  Qd7 {[%clk 0:02:54]} 12. Qc2 {[%clk 0:02:46]}  c5 {[%clk 0:02:48]} 13. Bxf6 {[%clk 0:02:46]}  gxf6 {[%clk 0:02:47]} 14. dxc5 {[%clk 0:02:44]}  Nc6 {[%clk 0:02:47]} 15. e3 {[%clk 0:02:43]}  Bxf1 {[%clk 0:02:46]} 16. Rxf1 {[%clk 0:02:40]}  Rac8 {[%clk 0:02:46]} 17. Rd1 {[%clk 0:02:36]}  Qe7 {[%clk 0:02:42]} 18. b4 {[%clk 0:02:30]}  Ne5 {[%clk 0:02:37]} 19. Nxe5 {[%clk 0:02:26]}  fxe5 {[%clk 0:02:37]} 20. c6 {[%clk 0:02:25]}  b5 {[%clk 0:02:23]} 21. Ke2 {[%clk 0:02:21]}  Rc7 {[%clk 0:02:19]} 22. Rc1 {[%clk 0:02:14]}  Qh4 {[%clk 0:01:50]} 23. g3 {[%clk 0:02:03]}  Qh5+ {[%clk 0:01:46]} 24. f3 {[%clk 0:02:02]}  Rd8 {[%clk 0:01:38]} 25. h4 {[%clk 0:01:55]}  Rd5 {[%clk 0:01:08]} 26. Rfd1 {[%clk 0:01:39]}  Kg7 {[%clk 0:00:57]} 27. Qe4 {[%clk 0:01:31]}  f5 {[%clk 0:00:51]} 28. Qc2 {[%clk 0:01:10]}  e4 {[%clk 0:00:51]} 29. g4 {[%clk 0:01:06]}  exf3+ {[%clk 0:00:50]} 30. Kf2 {[%clk 0:01:04]}  Qxh4+ {[%clk 0:00:42]} 31. Kxf3 {[%clk 0:00:59]}  Qxg4+ {[%clk 0:00:30]} 32. Kf2 {[%clk 0:00:59]}  Qh4+ {[%clk 0:00:30]} 33. Kg1 {[%clk 0:00:55]}  Kh7 {[%clk 0:00:18]} 34. Rxd5 {[%clk 0:00:44]}  Rg7+ {[%clk 0:00:18]} 35. Qg2 {[%clk 0:00:38]}  Rxg2+ {[%clk 0:00:14]} 36. Kxg2 {[%clk 0:00:39]}  Qe4+ {[%clk 0:00:14]} 37. Kg3 {[%clk 0:00:30]}  Qxe3+ {[%clk 0:00:13]} 38. Kh4 {[%clk 0:00:29]}  Qg5+ {[%clk 0:00:12]} 39. Kh3 {[%clk 0:00:29]}  Qxc1 {[%clk 0:00:13]} 40. Rd7+ {[%clk 0:00:28]}  Kg6 {[%clk 0:00:12]} 41. c7 {[%clk 0:00:29]}  Qc6 {[%clk 0:00:10]} 42. Re7 {[%clk 0:00:21]}  h5 {[%clk 0:00:09]} 43. Kh4 {[%clk 0:00:22]}  Qe4+ {[%clk 0:00:08]} 44. Kg3 {[%clk 0:00:22]}  Qd3+ {[%clk 0:00:08]} 45. Kf2 {[%clk 0:00:22]}  Qc4 {[%clk 0:00:08]} 46. Rd7 {[%clk 0:00:19]}  h4 {[%clk 0:00:08]} 47. Kg2 {[%clk 0:00:19]}  Kg5 {[%clk 0:00:08]} 48. Rg7+ {[%clk 0:00:18]}  Kf4 {[%clk 0:00:08]} 49. Kh3 {[%clk 0:00:18]}  Qc3+ {[%clk 0:00:05]} 50. Kh2 {[%clk 0:00:19]}  Qxg7 {[%clk 0:00:04]} 51. c8=Q {[%clk 0:00:20]}  Qg3+ {[%clk 0:00:05]} 52. Kh1 {[%clk 0:00:20]}  Qf3+ {[%clk 0:00:05]} 53. Kh2 {[%clk 0:00:20]}  Qf2+ {[%clk 0:00:05]} 54. Kh1 {[%clk 0:00:21]}  Qf3+ {[%clk 0:00:05]} 55. Kh2 {[%clk 0:00:21]}  e5 {[%clk 0:00:05]} 56. Qc1+ {[%clk 0:00:18]}  Qe3 {[%clk 0:00:05]} 57. Qc7 {[%clk 0:00:18]}  Kg4 {[%clk 0:00:03]} 58. Qg7+ {[%clk 0:00:17]}  Kf3 {[%clk 0:00:04]} 59. Qg2+ {[%clk 0:00:17]}  Kf4 {[%clk 0:00:04]} 60. Qf1+ {[%clk 0:00:16]}  Qf3 {[%clk 0:00:04]} 61. Qc1+ {[%clk 0:00:16]}  Qe3 {[%clk 0:00:05]} 62. Qf1+ {[%clk 0:00:16]}  Ke4 {[%clk 0:00:06]} 63. Qxb5 {[%clk 0:00:15]}  f4 {[%clk 0:00:06]} 64. Qc4+ {[%clk 0:00:15]}  Qd4 {[%clk 0:00:06]} 65. Qe2+ {[%clk 0:00:14]}  Qe3 {[%clk 0:00:06]} 66. Qc4+ {[%clk 0:00:13]}  Kf3 {[%clk 0:00:07]} 67. Qd5+ {[%clk 0:00:11]}  Qe4 {[%clk 0:00:07]} 68. Qf7 {[%clk 0:00:09]}  Kf2 {[%clk 0:00:06]} 69. Kh3 {[%clk 0:00:04]}  Qf3+ {[%clk 0:00:03]} 70. Kxh4 {[%clk 0:00:04]}  Qg3+ {[%clk 0:00:04]} 71. Kh5 {[%clk 0:00:04]}  e4 {[%clk 0:00:05]} 72. Qa2+ {[%clk 0:00:04]}  Kg1 {[%clk 0:00:05]} 73. Qb1+ {[%clk 0:00:04]}  Kg2 {[%clk 0:00:05]} 74. Qc2+ {[%clk 0:00:02]}  Qf2 {[%clk 0:00:04]} 75. Qc6 {[%clk 0:00:02]}  Qf3+ {[%clk 0:00:05]} 76. Kg5 {[%clk 0:00:02]}  e3 {[%clk 0:00:06]} 77. Qc2+ {[%clk 0:00:01]}  Kg3 {[%clk 0:00:06]} 78. Qd3 {[%clk 0:00:01]}  e2 {[%clk 0:00:05]} 79. Qd6 {[%clk 0:00:02]}  Qg4+ {[%clk 0:00:05]} 80. Kf6 {[%clk 0:00:02]}  e1=Q {[%clk 0:00:06]} 81. Qd5 {[%clk 0:00:02]}  Qe3 {[%clk 0:00:06]} 82. Qf5 {[%clk 0:00:03]}  Qxf5+ {[%clk 0:00:06]} 83. Kxf5 {[%clk 0:00:01]}  f3 {[%clk 0:00:07]} 0-1


[Site "https://www.chess.com"]

[Event "Titled Tuesday Blitz July 4 Early 2023"]
[White "Bueno, Alfeu Junior Varela"]
[Black "Jaskolka, Tomasz"]
[WhiteFideId "2108879"]
[BlackFideId "1170791"]
[WhiteElo "2438"]
[BlackElo "2588"]
[Result "0-1"]
[Round "10"]
[TimeControl "180+2"]
[Date "2023.07.04"]
[WhiteClock "0:00:00"]
[BlackClock "0:00:03"]
[Board "99"]

1. e4 {[%clk 0:03:00]}  d5 {[%clk 0:03:00]} 2. exd5 {[%clk 0:03:00]}  Nf6 {[%clk 0:02:57]} 3. Bb5+ {[%clk 0:02:59]}  Nbd7 {[%clk 0:02:55]} 4. c4 {[%clk 0:02:56]}  a6 {[%clk 0:02:55]} 5. Ba4 {[%clk 0:02:56]}  b5 {[%clk 0:02:48]} 6. cxb5 {[%clk 0:02:56]}  Nxd5 {[%clk 0:02:48]} 7. Nc3 {[%clk 0:02:46]}  N7b6 {[%clk 0:02:10]} 8. bxa6+ {[%clk 0:02:30]}  Nxa4 {[%clk 0:02:10]} 9. Qxa4+ {[%clk 0:02:30]}  Bd7 {[%clk 0:02:08]} 10. Qc4 {[%clk 0:02:17]}  Nb6 {[%clk 0:01:57]} 11. Qe2 {[%clk 0:02:13]}  Qc8 {[%clk 0:01:51]} 12. Nf3 {[%clk 0:02:05]}  Rxa6 {[%clk 0:01:49]} 13. Ne5 {[%clk 0:02:04]}  g6 {[%clk 0:01:29]} 14. Nxd7 {[%clk 0:01:37]}  Nxd7 {[%clk 0:01:29]} 15. O-O {[%clk 0:01:37]}  Bg7 {[%clk 0:01:29]} 16. Nd5 {[%clk 0:01:30]}  Re6 {[%clk 0:01:24]} 17. Qc4 {[%clk 0:01:24]}  c6 {[%clk 0:01:06]} 18. d4 {[%clk 0:00:53]}  O-O {[%clk 0:01:03]} 19. Nc3 {[%clk 0:00:51]}  Nb6 {[%clk 0:01:00]} 20. Qc5 {[%clk 0:00:46]}  Qd8 {[%clk 0:00:51]} 21. Be3 {[%clk 0:00:42]}  Nd7 {[%clk 0:00:40]} 22. Qa7 {[%clk 0:00:40]}  Nf6 {[%clk 0:00:38]} 23. Rfd1 {[%clk 0:00:38]}  Qd6 {[%clk 0:00:34]} 24. Qc5 {[%clk 0:00:35]}  Qb8 {[%clk 0:00:32]} 25. Rab1 {[%clk 0:00:23]}  Ng4 {[%clk 0:00:31]} 26. g3 {[%clk 0:00:23]}  Nxe3 {[%clk 0:00:31]} 27. fxe3 {[%clk 0:00:24]}  Rxe3 {[%clk 0:00:30]} 28. Qxc6 {[%clk 0:00:24]}  Rc8 {[%clk 0:00:27]} 29. Qg2 {[%clk 0:00:18]}  Bxd4 {[%clk 0:00:18]} 30. Rxd4 {[%clk 0:00:11]}  Rexc3 {[%clk 0:00:18]} 31. Rbd1 {[%clk 0:00:08]}  R3c5 {[%clk 0:00:08]} 32. Qd2 {[%clk 0:00:07]}  Kg7 {[%clk 0:00:06]} 33. Rd8 {[%clk 0:00:05]}  Rxd8 {[%clk 0:00:04]} 34. Qxd8 {[%clk 0:00:06]}  Qa7 {[%clk 0:00:04]} 35. Qd4+ {[%clk 0:00:06]}  e5 {[%clk 0:00:04]} 36. Qf2 {[%clk 0:00:03]}  Qc7 {[%clk 0:00:03]} 37. Rf1 {[%clk 0:00:02]}  f6 {[%clk 0:00:03]} 38. Qxf6+ {[%clk 0:00:02]}  Kh6 {[%clk 0:00:02]} 39. Qh4+ {[%clk 0:00:02]}  Kg7 {[%clk 0:00:03]} 40. Qf6+ {[%clk 0:00:02]}  Kh6 {[%clk 0:00:04]} 41. Qh4+ {[%clk 0:00:02]}  Kg7 {[%clk 0:00:04]} 42. Qe4 {[%clk 0:00:00]}  Qd6 {[%clk 0:00:03]} 0-1


[Site "https://www.chess.com"]

[Event "Titled Tuesday Blitz July 4 Early 2023"]
[White "Vivas Zamora, Fabian Ernesto"]
[Black "Golubev, Mikhail"]
[WhiteFideId "3902480"]
[BlackFideId "14100983"]
[WhiteElo "2430"]
[BlackElo "2549"]
[Result "0-1"]
[Round "10"]
[TimeControl "180+2"]
[Date "2023.07.04"]
[WhiteClock "0:00:01"]
[BlackClock "0:00:22"]
[Board "102"]

1. e4 {[%clk 0:02:46]}  c5 {[%clk 0:02:59]} 2. Nf3 {[%clk 0:02:46]}  d6 {[%clk 0:02:59]} 3. d4 {[%clk 0:02:44]}  Nf6 {[%clk 0:02:59]} 4. Nc3 {[%clk 0:02:41]}  cxd4 {[%clk 0:02:59]} 5. Nxd4 {[%clk 0:02:41]}  g6 {[%clk 0:02:59]} 6. Be3 {[%clk 0:02:41]}  Bg7 {[%clk 0:02:59]} 7. f3 {[%clk 0:02:42]}  Nc6 {[%clk 0:02:59]} 8. Qd2 {[%clk 0:02:42]}  O-O {[%clk 0:02:59]} 9. O-O-O {[%clk 0:02:42]}  d5 {[%clk 0:02:59]} 10. Nxc6 {[%clk 0:02:43]}  bxc6 {[%clk 0:02:58]} 11. Bc4 {[%clk 0:02:44]}  e6 {[%clk 0:02:57]} 12. Bb3 {[%clk 0:02:43]}  Bb7 {[%clk 0:02:56]} 13. Na4 {[%clk 0:02:39]}  Qc7 {[%clk 0:02:02]} 14. Nc5 {[%clk 0:01:59]}  Rad8 {[%clk 0:02:01]} 15. e5 {[%clk 0:01:38]}  Nd7 {[%clk 0:01:48]} 16. f4 {[%clk 0:01:12]}  d4 {[%clk 0:01:27]} 17. Qxd4 {[%clk 0:01:11]}  Nxe5 {[%clk 0:01:27]} 18. Qb4 {[%clk 0:01:07]}  Rxd1+ {[%clk 0:01:26]} 19. Rxd1 {[%clk 0:01:07]}  Ng4 {[%clk 0:01:26]} 20. Bg1 {[%clk 0:00:58]}  Bc8 {[%clk 0:01:25]} 21. Kb1 {[%clk 0:00:43]}  Nf6 {[%clk 0:01:22]} 22. Ne4 {[%clk 0:00:32]}  Qxf4 {[%clk 0:01:16]} 23. Nxf6+ {[%clk 0:00:16]}  Qxf6 {[%clk 0:01:17]} 24. Bd4 {[%clk 0:00:16]}  Rd8 {[%clk 0:01:15]} 25. c3 {[%clk 0:00:13]}  e5 {[%clk 0:01:14]} 26. Bxa7 {[%clk 0:00:11]}  Qf5+ {[%clk 0:00:42]} 27. Ka1 {[%clk 0:00:09]}  Rxd1+ {[%clk 0:00:42]} 28. Bxd1 {[%clk 0:00:10]}  Qf1 {[%clk 0:00:40]} 29. Qd6 {[%clk 0:00:09]}  Bg4 {[%clk 0:00:38]} 30. Qd8+ {[%clk 0:00:06]}  Bf8 {[%clk 0:00:38]} 31. a4 {[%clk 0:00:01]}  Bxd1 {[%clk 0:00:34]} 32. Ka2 {[%clk 0:00:01]}  Qc4+ {[%clk 0:00:25]} 33. Kb1 {[%clk 0:00:01]}  Qe4+ {[%clk 0:00:22]} 34. Kc1 {[%clk 0:00:01]}  Qc2# {[%clk 0:00:22]} 0-1


[Site "https://www.chess.com"]

[Event "Titled Tuesday Blitz July 4 Early 2023"]
[White "Estrada Nieto, Julian"]
[Black "Romero Ruscalleda, Josep"]
[WhiteFideId "5101018"]
[BlackFideId "2231859"]
[WhiteElo "2535"]
[BlackElo "2416"]
[Result "1/2-1/2"]
[Round "10"]
[TimeControl "180+2"]
[Date "2023.07.04"]
[WhiteClock "0:00:07"]
[BlackClock "0:00:13"]
[Board "104"]

1. e4 {[%clk 0:03:00]}  g6 {[%clk 0:03:00]} 2. d4 {[%clk 0:03:00]}  Bg7 {[%clk 0:03:01]} 3. Nf3 {[%clk 0:03:00]}  d6 {[%clk 0:03:01]} 4. Nc3 {[%clk 0:03:01]}  a6 {[%clk 0:03:01]} 5. a4 {[%clk 0:03:00]}  Nc6 {[%clk 0:03:01]} 6. Be2 {[%clk 0:02:59]}  Bg4 {[%clk 0:02:56]} 7. Be3 {[%clk 0:02:59]}  e5 {[%clk 0:02:55]} 8. dxe5 {[%clk 0:02:44]}  dxe5 {[%clk 0:02:50]} 9. Nd5 {[%clk 0:02:42]}  Nge7 {[%clk 0:02:34]} 10. Bg5 {[%clk 0:02:29]}  Qd6 {[%clk 0:02:34]} 11. Nf6+ {[%clk 0:02:11]}  Bxf6 {[%clk 0:02:22]} 12. Qxd6 {[%clk 0:02:10]}  cxd6 {[%clk 0:02:22]} 13. Bxf6 {[%clk 0:02:11]}  O-O {[%clk 0:02:16]} 14. Rd1 {[%clk 0:02:04]}  Rfd8 {[%clk 0:02:11]} 15. h3 {[%clk 0:01:47]}  Bxf3 {[%clk 0:02:08]} 16. Bxf3 {[%clk 0:01:47]}  Kf8 {[%clk 0:02:08]} 17. c3 {[%clk 0:01:43]}  b5 {[%clk 0:01:59]} 18. axb5 {[%clk 0:01:31]}  axb5 {[%clk 0:01:59]} 19. O-O {[%clk 0:01:31]}  Na5 {[%clk 0:01:43]} 20. Rd3 {[%clk 0:01:18]}  Nb7 {[%clk 0:01:30]} 21. Rfd1 {[%clk 0:01:07]}  Ra2 {[%clk 0:01:29]} 22. b4 {[%clk 0:00:46]}  Rc8 {[%clk 0:01:07]} 23. Bg4 {[%clk 0:00:28]}  Rc7 {[%clk 0:01:02]} 24. R1d2 {[%clk 0:00:14]}  Rxd2 {[%clk 0:01:01]} 25. Rxd2 {[%clk 0:00:14]}  Ng8 {[%clk 0:00:50]} 26. Bg5 {[%clk 0:00:11]}  f6 {[%clk 0:00:48]} 27. Be3 {[%clk 0:00:10]}  Ke7 {[%clk 0:00:48]} 28. Be2 {[%clk 0:00:09]}  Rxc3 {[%clk 0:00:43]} 29. Bxb5 {[%clk 0:00:09]}  Rb3 {[%clk 0:00:43]} 30. Ba6 {[%clk 0:00:05]}  Rxb4 {[%clk 0:00:41]} 31. Rc2 {[%clk 0:00:05]}  Nc5 {[%clk 0:00:38]} 32. Rxc5 {[%clk 0:00:02]}  Rxe4 {[%clk 0:00:31]} 33. Rc7+ {[%clk 0:00:02]}  Ke6 {[%clk 0:00:28]} 34. Bd3 {[%clk 0:00:02]}  Ra4 {[%clk 0:00:27]} 35. Rxh7 {[%clk 0:00:02]}  Ne7 {[%clk 0:00:27]} 36. Bf1 {[%clk 0:00:02]}  d5 {[%clk 0:00:25]} 37. Bh6 {[%clk 0:00:02]}  d4 {[%clk 0:00:22]} 38. Bf8 {[%clk 0:00:02]}  Nf5 {[%clk 0:00:22]} 39. h4 {[%clk 0:00:02]}  Ra1 {[%clk 0:00:19]} 40. g4 {[%clk 0:00:02]}  d3 {[%clk 0:00:16]} 41. gxf5+ {[%clk 0:00:01]}  Kxf5 {[%clk 0:00:16]} 42. Bh6 {[%clk 0:00:01]}  e4 {[%clk 0:00:16]} 43. Be3 {[%clk 0:00:01]}  Kg4 {[%clk 0:00:16]} 44. Kg2 {[%clk 0:00:01]}  f5 {[%clk 0:00:16]} 45. Rf7 {[%clk 0:00:01]}  Kxh4 {[%clk 0:00:15]} 46. Rf6 {[%clk 0:00:01]}  Kh5 {[%clk 0:00:14]} 47. Rf8 {[%clk 0:00:01]}  g5 {[%clk 0:00:14]} 48. Rh8+ {[%clk 0:00:02]}  Kg4 {[%clk 0:00:14]} 49. Rg8 {[%clk 0:00:03]}  f4 {[%clk 0:00:14]} 50. Bd4 {[%clk 0:00:03]}  f3+ {[%clk 0:00:13]} 51. Kg1 {[%clk 0:00:02]}  d2 {[%clk 0:00:11]} 52. Bxa1 {[%clk 0:00:02]}  d1=Q {[%clk 0:00:12]} 53. Bf6 {[%clk 0:00:02]}  Qd5 {[%clk 0:00:11]} 54. Rxg5+ {[%clk 0:00:03]}  Qxg5 {[%clk 0:00:10]} 55. Bxg5 {[%clk 0:00:04]}  Kxg5 {[%clk 0:00:11]} 56. Bh3 {[%clk 0:00:04]}  Kf4 {[%clk 0:00:11]} 57. Bf1 {[%clk 0:00:05]}  e3 {[%clk 0:00:12]} 58. fxe3+ {[%clk 0:00:04]}  Kxe3 {[%clk 0:00:12]} 59. Kh2 {[%clk 0:00:04]}  Kf2 {[%clk 0:00:12]} 60. Bh3 {[%clk 0:00:05]}  Ke1 {[%clk 0:00:11]} 61. Kg3 {[%clk 0:00:05]}  f2 {[%clk 0:00:12]} 62. Bg2 {[%clk 0:00:06]}  Ke2 {[%clk 0:00:12]} 63. Bh3 {[%clk 0:00:06]}  Ke3 {[%clk 0:00:12]} 64. Bg2 {[%clk 0:00:06]}  Ke2 {[%clk 0:00:12]} 65. Bh3 {[%clk 0:00:06]}  Ke1 {[%clk 0:00:13]} 66. Bg2 {[%clk 0:00:07]}  f1=Q {[%clk 0:00:13]} 67. Bxf1 {[%clk 0:00:07]} 1/2-1/2


[Site "https://www.chess.com"]

[Event "Titled Tuesday Blitz July 4 Early 2023"]
[White "Duarte, Leonardo"]
[Black "Frolyanov, Dmitry"]
[WhiteFideId "110582"]
[BlackFideId "4151976"]
[WhiteElo "2406"]
[BlackElo "2512"]
[Result "0-1"]
[Round "10"]
[TimeControl "180+2"]
[Date "2023.07.04"]
[WhiteClock "0:00:24"]
[BlackClock "0:01:14"]
[Board "108"]

1. e4 {[%clk 0:03:00]}  e5 {[%clk 0:02:59]} 2. Nf3 {[%clk 0:03:00]}  Nf6 {[%clk 0:02:59]} 3. Nxe5 {[%clk 0:03:00]}  d6 {[%clk 0:03:00]} 4. Nf3 {[%clk 0:03:00]}  Nxe4 {[%clk 0:03:00]} 5. d4 {[%clk 0:03:01]}  d5 {[%clk 0:02:59]} 6. Bd3 {[%clk 0:03:02]}  Bd6 {[%clk 0:03:00]} 7. O-O {[%clk 0:03:03]}  O-O {[%clk 0:03:00]} 8. Re1 {[%clk 0:03:04]}  Bf5 {[%clk 0:02:58]} 9. c4 {[%clk 0:02:54]}  c6 {[%clk 0:02:58]} 10. Qb3 {[%clk 0:02:54]}  Qd7 {[%clk 0:02:50]} 11. Nc3 {[%clk 0:02:32]}  Nxc3 {[%clk 0:02:42]} 12. Bxf5 {[%clk 0:02:27]}  Qxf5 {[%clk 0:02:43]} 13. Qxb7 {[%clk 0:02:25]}  Ne4 {[%clk 0:02:35]} 14. Qxa8 {[%clk 0:02:13]}  Qd7 {[%clk 0:02:35]} 15. c5 {[%clk 0:02:00]}  Na6 {[%clk 0:02:19]} 16. Qxf8+ {[%clk 0:01:56]}  Bxf8 {[%clk 0:02:20]} 17. Ne5 {[%clk 0:01:55]}  Qb7 {[%clk 0:02:10]} 18. a3 {[%clk 0:01:40]}  Nc7 {[%clk 0:02:09]} 19. b4 {[%clk 0:01:37]}  Ne6 {[%clk 0:02:09]} 20. Be3 {[%clk 0:01:34]}  g6 {[%clk 0:02:05]} 21. Rab1 {[%clk 0:01:26]}  Bg7 {[%clk 0:02:03]} 22. f4 {[%clk 0:01:27]}  Bxe5 {[%clk 0:01:50]} 23. fxe5 {[%clk 0:01:24]}  Qa6 {[%clk 0:01:36]} 24. Rb3 {[%clk 0:01:20]}  Qa4 {[%clk 0:01:33]} 25. Reb1 {[%clk 0:01:19]}  Nc7 {[%clk 0:01:33]} 26. Bc1 {[%clk 0:01:09]}  Nb5 {[%clk 0:01:31]} 27. Be3 {[%clk 0:00:30]}  Nxa3 {[%clk 0:01:28]} 28. R1b2 {[%clk 0:00:30]}  Nc4 {[%clk 0:01:27]} 29. Rb1 {[%clk 0:00:24]}  Ned2 {[%clk 0:01:14]} 0-1


[Site "https://www.chess.com"]